bitfinex-derivatives/quotes_SOLF0:USTF0_20241218
["timestamp","ask_amount","ask_price","bid_price","bid_amount"]
[1734533329911,2.58,216.86,216.78,17.90373105]
[1734533330815,2.58,216.86,216.83,2.3061]
[1734533331016,2.58,216.86,216.78,17.90373105]
[1734533332219,2.58,216.86,216.84,2.3061]
[1734533333015,2.58,216.86,216.76,1.5841]
[1734533333211,2.58,216.86,216.75,1.4881]
[1734533333418,2.3065,216.81,216.76,2.307]
[1734533333618,2.3065,216.81,216.74,1.5708]
[1734533333619,4.9065,216.81,216.74,1.5708]
[1734533334113,4.9065,216.81,216.76,2.307]
[1734533334516,2.6,216.81,216.76,2.307]
[1734533334715,2.6,216.81,216.74,1.5708]
[1734533334920,2.6,216.81,216.7,17.90373105]
[1734533335220,2.3067,216.79,216.74,2.3072]
[1734533335421,2.3067,216.79,216.7,17.90373105]
[1734533335624,2.6,216.81,216.7,17.90373105]
[1734533336119,2.3068,216.78,216.74,2.3072]
[1734533336315,2.6,216.81,216.69,5.54779245]
[1734533336519,2.307,216.77,216.72,2.3074]
[1734533336820,2.307,216.77,216.69,5.54779245]
[1734533336821,2.6,216.76,216.69,5.54779245]
[1734533337016,2.6,216.76,216.72,2.3073]
[1734533338124,2.6,216.76,216.73,2.3073]
[1734533338525,2.6,216.76,216.69,5.54779245]
[1734533338724,2.6,216.79,216.7,17.90373105]
[1734533339122,2.6,216.79,216.76,2.307]
[1734533339427,2.6,216.79,216.7,17.90373105]
[1734533339825,2.6,216.79,216.76,2.3069]
[1734533340024,2.6,216.79,216.7,17.90373105]
[1734533341224,2.6,216.79,216.72,2.3074]
[1734533341620,2.6,216.79,216.66,1.5916]
[1734533341621,20.50373105,216.79,216.66,1.5916]
[1734533341918,20.50373105,216.79,216.58,17.90373105]
[1734533342221,17.90373105,216.75,216.58,17.90373105]
[1734533342421,2.3081,216.66,216.6,2.3086]
[1734533342626,2.6,216.65,216.58,17.90373105]
[1734533343024,2.6,216.65,216.62,2.3084]
[1734533343220,2.6,216.65,216.56,8.54473356]
[1734533343528,2.6,216.65,216.56,2.9527]
[1734533343727,2.6,216.65,216.49,1.4609]
[1734533344031,2.6,216.65,216.44,17.90373105]
[1734533344032,17.90373105,216.63,216.44,17.90373105]
[1734533344220,17.90373105,216.63,216.45,0.84899524]
[1734533344421,1.5108,216.62,216.44,17.90373105]
[1734533344619,2.3094,216.54,216.48,2.3099]
[1734533344823,2.6,216.53,216.48,2.3099]
[1734533345029,2.6,216.53,216.4,25.04303105]
[1734533345229,4.9095,216.53,216.46,2.3101]
[1734533345431,2.6,216.53,216.4,25.04303105]
[1734533346126,2.6,216.53,216.44,23.39799049]
[1734533347226,2.6,216.57,216.48,17.90373105]
[1734533347630,2.6,216.58,216.56,2.3091]
[1734533348227,17.90373105,216.7,216.52,17.90373105]
[1734533348433,17.90373105,216.7,216.53,3.1202]
[1734533348434,4.2048,216.68,216.53,3.1202]
[1734533348633,4.2048,216.68,216.53,4.5887]
[1734533348836,6.5126,216.68,216.62,2.3085]
[1734533349031,4.2048,216.68,216.56,17.90373105]
[1734533350330,4.2048,216.68,216.53,4.5887]
[1734533350640,2.3082,216.65,216.59,2.3088]
[1734533350832,17.90373105,216.66,216.27,2.02087736]
[1734533351138,2.3102,216.46,216.45,0.84897223]
[1734533351330,2.6,216.46,216.28,3.1418]
[1734533351535,2.6,216.46,216.29,18.75330872]
[1734533351742,17.90373105,216.48,216.3,0.84957767]
[1734533352038,2.6,216.47,216.33,5.48894975]
[1734533352233,2.3108,216.41,216.35,2.3113]
[1734533352440,2.6,216.4,216.28,3.1418]
[1734533352636,2.6,216.39,216.28,3.1418]
[1734533352834,2.6,216.38,216.3,5.42297813]
[1734533353033,17.90373105,216.44,216.3,5.42297813]
[1734533353034,2.6,216.37,216.3,5.42297813]
[1734533353333,2.6,216.42,216.31,17.90373105]
[1734533353529,2.6,216.41,216.31,17.90373105]
[1734533354338,2.6,216.41,216.39,2.3109]
[1734533355642,2.6,216.41,216.3,5.42297813]
[1734533355847,2.6,216.41,216.28,32.47171485]
[1734533356349,34.84103994,216.47,216.28,32.47171485]
[1734533356543,2.6,216.46,216.28,32.47171485]
[1734533356849,2.6,216.45,216.32,29.32991485]
[1734533357649,2.6,216.45,216.4,2.3108]
[1734533357847,2.6,216.45,216.32,29.32991485]
[1734533358152,2.6,216.44,216.32,29.32991485]
[1734533358349,2.6,216.44,216.41,2.3107]
[1734533358851,2.6,216.43,216.41,2.3107]
[1734533359244,2.6,216.43,216.32,29.32991485]
[1734533359449,2.6,216.43,216.29,5.4865165]
[1734533359846,2.3108,216.4,216.34,2.3114]
[1734533360152,31.92991485,216.43,216.29,5.4865165]
[1734533360351,2.3108,216.4,216.35,2.3114]
[1734533360544,31.92991485,216.43,216.29,5.4865165]
[1734533361046,2.3105,216.44,216.29,5.4865165]
[1734533361353,2.6,216.43,216.29,5.4865165]
[1734533361547,2.3103,216.46,216.4,2.3108]
[1734533361755,29.32991485,216.43,216.29,5.4865165]
[1734533362854,2.6,216.42,216.29,5.4865165]
[1734533363354,2.3108,216.41,216.34,2.3115]
[1734533363654,2.6,216.42,216.34,2.3115]
[1734533364156,2.3109,216.4,216.34,2.3115]
[1734533364351,2.6,216.42,216.32,2.3116]
[1734533364656,29.32991485,216.39,216.05,15.85261207]
[1734533364955,4.5501,216.38,216.26,2.3123]
[1734533365153,4.5501,216.38,216.23,5.67870321]
[1734533365354,4.9112,216.37,216.31,2.3117]
[1734533365556,5.51112509,216.47,216.28,29.32991485]
[1734533365759,1.5412,216.45,216.28,29.32991485]
[1734533365951,2.3107,216.41,216.35,2.3113]
[1734533366147,2.6,216.4,216.35,2.3113]
[1734533366554,2.6,216.4,216.28,30.91741485]
[1734533366750,2.6,216.4,216.27,2.6]
[1734533367055,29.32991485,216.39,216.27,2.3121]
[1734533367553,29.32991485,216.39,216.23,2.6]
[1734533368055,4.9111,216.38,216.33,2.3116]
[1734533368254,2.6,216.44,216.28,31.92991485]
[1734533368651,2.3107,216.41,216.36,2.3112]
[1734533368955,2.6,216.44,216.28,31.92991485]
[1734533369348,1.5412,216.45,216.28,31.92991485]
[1734533369552,2.3108,216.4,216.34,2.3114]
[1734533369752,2.3108,216.4,216.28,31.92991485]
[1734533369954,2.6,216.43,216.28,31.92991485]
[1734533370350,2.3112,216.37,216.28,31.92991485]
[1734533370555,4.9112,216.37,216.28,31.92991485]
[1734533370755,4.9112,216.37,216.33,2.3115]
[1734533370756,2.6,216.37,216.33,2.3115]
[1734533370957,2.6,216.37,216.28,31.92991485]
[1734533371255,2.6,216.41,216.28,31.92991485]
[1734533371656,2.6,216.41,216.28,29.32991485]
[1734533371856,2.6,216.41,216.29,2.6]
[1734533372158,2.6,216.41,216.24,29.32991485]
[1734533372353,2.311,216.39,216.35,2.3114]
[1734533372758,2.6,216.41,216.35,2.3114]
[1734533373254,2.6,216.41,216.28,29.32991485]
[1734533373452,1.5412,216.45,216.28,29.32991485]
[1734533373651,2.6,216.43,216.29,0.8496542]
[1734533373849,2.6,216.43,216.26,29.32991485]
[1734533374051,2.3113,216.36,216.26,31.92991485]
[1734533374253,2.6,216.38,216.26,29.32991485]
[1734533374557,1.5412,216.45,216.26,29.32991485]
[1734533374558,2.6,216.37,216.26,29.32991485]
[1734533374858,2.6,216.36,216.26,29.32991485]
[1734533375061,2.6,216.36,216.23,2.6]
[1734533375454,2.6,216.36,216.28,2.312]
[1734533375658,2.3118,216.31,216.22,36.56885875]
[1734533375960,2.6,216.31,216.22,36.56885875]
[1734533376159,2.6,216.31,216.22,7.2389439]
[1734533376457,2.3119,216.3,216.26,2.3123]
[1734533376961,2.6,216.31,216.28,2.312]
[1734533377351,2.6,216.31,216.22,7.2389439]
[1734533377552,18.07139126,216.41,216.23,18.07139126]
[1734533377759,2.6,216.38,216.24,2.6]
[1734533378153,4.9112,216.38,216.33,2.3115]
[1734533378356,2.6,216.38,216.24,2.6]
[1734533378562,2.3113,216.37,216.32,2.3117]
[1734533378859,2.3113,216.37,216.24,2.6]
[1734533379053,2.6,216.38,216.36,2.3112]
[1734533379458,2.6,216.38,216.27,18.07139126]
[1734533379861,2.6,216.38,216.24,2.6]
[1734533380055,2.6,216.38,216.23,18.07139126]
[1734533380258,2.3115,216.34,216.29,2.3119]
[1734533381159,2.3117,216.32,216.28,2.3121]
[1734533381357,2.6,216.32,216.22,7.2389439]
[1734533381658,2.3119,216.3,216.26,2.3123]
[1734533382357,2.6,216.32,216.23,18.07139126]
[1734533382959,4.9117,216.32,216.28,2.3121]
[1734533383358,2.6,216.32,216.23,18.07139126]
[1734533383758,2.6,216.32,216.29,2.3119]
[1734533384063,2.6,216.32,216.23,18.07139126]
[1734533384558,2.6,216.32,216.21,1.502]
[1734533385166,2.3121,216.28,216.24,2.3124]
[1734533385769,2.3121,216.28,216.25,2.3124]
[1734533386467,2.312,216.29,216.25,2.3124]
[1734533386666,2.6,216.31,216.23,18.07139126]
[1734533386969,2.6,216.34,216.27,18.07139126]
[1734533387269,18.07139126,216.46,216.31,2.3117]
[1734533387270,4.9114,216.35,216.31,2.3117]
[1734533387561,4.9114,216.35,216.27,18.07139126]
[1734533387562,2.6,216.35,216.29,2.312]
[1734533387762,2.6,216.35,216.22,2.6]
[1734533387763,2.6,216.35,216.23,18.07139126]
[1734533388470,2.6,216.35,216.27,18.07139126]
[1734533388658,4.9114,216.35,216.31,2.3117]
[1734533389567,4.9114,216.35,216.27,18.07139126]
[1734533389568,2.6,216.35,216.32,2.3116]
[1734533389764,2.6,216.35,216.27,18.07139126]
[1734533390162,2.6,216.35,216.33,2.3116]
[1734533390568,2.6,216.35,216.27,18.07139126]
[1734533390767,2.6,216.35,216.32,2.3117]
[1734533391062,2.6,216.35,216.27,18.07139126]
[1734533391265,2.6,216.35,216.23,18.07139126]
[1734533391666,2.3116,216.33,216.29,2.3119]
[1734533392060,2.6,216.35,216.23,18.07139126]
[1734533392465,1.5733,216.34,216.23,18.07139126]
[1734533392864,2.312,216.3,216.26,2.3123]
[1734533393065,4.912,216.3,216.26,2.3123]
[1734533393267,2.6,216.3,216.21,1.502]
[1734533393568,2.6,216.3,216.29,2.312]
[1734533394364,4.9114,216.35,216.31,2.3117]
[1734533394571,2.6,216.37,216.27,18.07139126]
[1734533395469,2.3113,216.36,216.27,18.07139126]
[1734533395670,2.6,216.37,216.27,18.07139126]
[1734533395867,2.3116,216.33,216.29,2.3119]
[1734533396366,2.6,216.37,216.29,2.3119]
[1734533397167,2.3116,216.33,216.29,2.3119]
[1734533397469,2.6,216.37,216.24,2.6]
[1734533397669,2.6,216.37,216.23,18.07139126]
[1734533397871,2.3119,216.31,216.27,2.3122]
[1734533398072,2.6,216.32,216.21,1.502]
[1734533398273,2.6,216.31,216.21,1.502]
[1734533398468,2.312,216.29,216.26,2.3123]
[1734533399568,2.3122,216.28,216.21,1.502]
[1734533400071,2.3122,216.28,216.23,2.3126]
[1734533400267,2.3122,216.28,216.21,1.502]
[1734533400872,2.6,216.3,216.24,2.3125]
[1734533401264,2.3122,216.28,216.24,2.3125]
[1734533401469,2.6,216.3,216.24,2.3125]
[1734533401669,2.6,216.3,216.23,2.3126]
[1734533401869,2.6,216.3,216.21,1.502]
[1734533402070,2.6,216.3,216.1,61.64627322]
[1734533402071,2.6,216.3,216.18,2.3131]
[1734533402272,1.4797,216.29,216.18,2.3131]
[1734533402469,2.3127,216.23,216.12,2.6]
[1734533402665,2.3127,216.23,216.19,2.313]
[1734533403271,2.6,216.24,216.21,2.3128]
[1734533403472,2.6,216.24,216.16,5.56520245]
[1734533403768,2.6,216.24,216.22,2.3127]
[1734533403965,2.6,216.24,216.16,5.56520245]
[1734533404268,2.6,216.28,216.16,5.56520245]
[1734533404576,2.6,216.28,216.17,2.6]
[1734533404965,4.9122,216.28,216.25,2.3124]
[1734533405167,2.6,216.28,216.19,18.07139126]
[1734533405665,2.3123,216.27,216.2,2.3129]
[1734533405869,2.6,216.28,216.16,5.56520245]
[1734533406270,2.3127,216.23,216.19,2.3131]
[1734533406467,2.6,216.28,216.11,22.69069126]
[1734533406667,2.6,216.28,216.12,2.6]
[1734533407265,2.3125,216.25,216.12,2.6]
[1734533407773,2.3125,216.25,216.14,5.63881204]
[1734533408072,2.6,216.28,216.14,5.63881204]
[1734533408273,2.3126,216.24,216.14,5.63881204]
[1734533408473,2.6,216.28,216.14,5.63881204]
[1734533408866,2.3127,216.23,216.14,5.63881204]
[1734533409066,4.9127,216.23,216.14,5.63881204]
[1734533409267,2.6,216.23,216.11,21.14229126]
[1734533409472,20.67139126,216.23,216.07,18.07139126]
[1734533409671,4.5533,216.22,216.11,2.3139]
[1734533409871,2.3137,216.14,216.05,2.997]
[1734533410173,2.6,216.15,216.08,2.3142]
[1734533410368,2.52,216.14,216.05,1.5317]
[1734533410565,18.07139126,216.11,215.96,19.23623201]
[1734533410766,7.1408,216.1,216.0,2.315]
[1734533410970,2.3147,216.04,215.96,19.23623201]
[1734533411172,2.52,216.03,215.96,19.23623201]
[1734533411377,4.6208,216.1,215.93,18.07139126]
[1734533411779,2.52,216.09,215.97,18.07139126]
[1734533411974,2.52,216.09,216.05,2.3145]
[1734533412269,2.52,216.09,215.97,18.07139126]
[1734533412475,2.52,216.09,216.03,2.3147]
[1734533412975,4.8342,216.09,216.03,2.3147]
[1734533413879,2.52,216.08,216.06,2.3144]
[1734533414266,2.52,216.1,216.02,18.07139126]
[1734533414476,2.52,216.12,216.03,2.9884]
[1734533415276,2.52,216.12,216.09,2.3141]
[1734533415478,2.52,216.12,216.03,2.9884]
[1734533415971,2.52,216.12,216.11,2.3139]
[1734533416370,2.3131,216.2,216.06,18.07139126]
[1734533416566,2.52,216.19,216.06,18.07139126]
[1734533416975,2.3132,216.18,216.06,18.07139126]
[1734533417277,2.52,216.19,216.06,18.07139126]
[1734533417472,2.3132,216.18,216.06,18.07139126]
[1734533417978,1.5865,216.21,216.1,18.07139126]
[1734533418173,4.1065,216.21,216.1,18.07139126]
[1734533418477,2.3134,216.17,216.06,18.07139126]
[1734533418672,4.1065,216.21,216.05,7.96554449]
[1734533418673,2.52,216.16,216.05,7.96554449]
[1734533419275,2.52,216.16,216.06,18.07139126]
[1734533419780,2.52,216.16,216.15,2.3135]
[1734533419971,2.52,216.24,216.1,20.59139126]
[1734533420373,2.52,216.24,216.11,1.4547]
[1734533421081,2.52,216.24,216.14,18.07139126]
[1734533421276,2.52,216.24,216.15,3.0981]
[1734533421675,2.52,216.24,216.22,2.3127]
[1734533422384,18.07139126,216.36,216.18,18.07139126]
[1734533422584,3.20874222,216.35,216.18,18.07139126]
[1734533422882,2.3122,216.27,216.21,2.3128]
[1734533423083,2.52,216.26,216.15,3.0981]
[1734533423473,2.3125,216.25,216.2,2.3129]
[1734533423681,2.52,216.26,216.15,3.0981]
[1734533424080,2.52,216.26,216.1,18.07139126]
[1734533424278,21.75700815,216.25,216.06,3.0401]
[1734533424483,21.06849126,216.25,216.12,2.3138]
[1734533424679,21.06849126,216.25,216.06,3.0401]
[1734533424680,1.37698718,216.24,216.06,3.0401]
[1734533424884,0.68849072,216.23,216.06,3.0401]
[1734533425383,18.07139126,216.21,216.05,5.44554449]
[1734533425584,2.3135,216.16,216.09,2.3141]
[1734533425790,2.52,216.15,216.05,5.44554449]
[1734533425986,2.52,216.14,216.05,5.44554449]
[1734533426187,2.52,216.14,216.11,2.3138]
[1734533426387,2.52,216.14,216.05,5.44554449]
[1734533426690,2.52,216.14,216.11,2.3139]
[1734533426887,2.52,216.14,216.05,5.44554449]
[1734533427091,2.52,216.18,216.08,18.07139126]
[1734533427286,21.06849126,216.25,216.08,18.07139126]
[1734533427287,2.52,216.19,216.16,2.3134]
[1734533427490,2.52,216.19,216.08,18.07139126]
[1734533429387,2.52,216.23,216.12,18.07139126]
[1734533429688,1.4889,216.29,216.16,18.07139126]
[1734533429889,2.52,216.27,216.16,18.07139126]
[1734533430089,4.8322,216.27,216.19,2.313]
[1734533430294,4.8322,216.27,216.16,18.07139126]
[1734533430596,2.52,216.27,216.16,18.07139126]
[1734533430782,2.52,216.27,216.14,2.52]
[1734533430783,2.52,216.27,216.13,1.4812]
[1734533431189,2.3129,216.21,216.15,2.3134]
[1734533431489,2.52,216.2,216.13,1.4812]
[1734533431690,2.52,216.2,216.16,2.3133]
[1734533432493,2.52,216.2,216.13,1.4812]
[1734533432691,2.52,216.25,216.13,1.4812]
[1734533433091,2.52,216.25,216.16,2.3133]
[1734533433393,2.52,216.25,216.13,1.4812]
[1734533433991,4.8325,216.25,216.2,2.3129]
[1734533434387,2.52,216.25,216.23,2.3126]
[1734533434593,1.4889,216.29,216.16,18.07139126]
[1734533434890,2.52,216.28,216.17,4.1098]
[1734533435192,2.52,216.28,216.25,2.3123]
[1734533435397,4.832,216.3,216.2,18.07139126]
[1734533435589,2.52,216.3,216.26,2.3122]
[1734533435787,2.52,216.3,216.2,18.07139126]
[1734533436895,2.52,216.3,216.17,3.1466]
[1734533438195,2.52,216.29,216.24,11.29531286]
[1734533438889,2.52,216.29,216.27,2.3122]
[1734533439087,2.52,216.32,216.27,2.3122]
[1734533439285,2.52,216.32,216.24,11.29531286]
[1734533439491,2.52,216.35,216.24,11.29531286]
[1734533439995,4.8315,216.35,216.24,11.29531286]
[1734533440191,2.52,216.35,216.27,11.29531286]
[1734533440698,2.52,216.35,216.34,2.3115]
[1734533440994,2.52,216.35,216.27,11.29531286]
[1734533441190,2.52,216.35,216.29,2.312]
[1734533441395,2.52,216.35,216.27,11.29531286]
[1734533441787,2.52,216.35,216.31,2.3118]
[1734533441990,508.1284906,216.56,216.33,11.29531286]
[1734533442196,0.68821936,216.49,216.38,11.29531286]
[1734533442691,195.02058027,216.5,216.41,11.29531286]
[1734533442898,195.02058027,216.5,216.44,11.29531286]
[1734533442899,189.55838363,216.5,216.44,11.29531286]
[1734533443094,189.55838363,216.5,216.44,13.85531286]
[1734533443398,2.56,216.56,216.47,11.29531286]
[1734533443894,2.309,216.58,216.47,11.29531286]
[1734533443895,2.56,216.57,216.47,11.29531286]
[1734533444191,2.56,216.57,216.49,2.3098]
[1734533444397,2.56,216.57,216.46,18.02745008]
[1734533444898,2.56,216.57,216.53,2.3094]
[1734533445092,1.4659,216.59,216.53,2.3094]
[1734533445396,1.4659,216.59,216.5,18.02745008]
[1734533445992,1.4659,216.59,216.49,2.56]
[1734533446193,1.4659,216.59,216.47,5.55637812]
[1734533446496,2.3092,216.56,216.49,2.3099]
[1734533446797,2.56,216.55,216.46,23.6398412]
[1734533446999,2.56,216.55,216.47,2.31]
[1734533447494,2.56,216.55,216.45,5.4857]
[1734533447700,2.56,216.55,216.42,18.02745008]
[1734533448403,2.3094,216.54,216.47,2.31]
[1734533448596,2.3094,216.54,216.42,18.02745008]
[1734533448597,2.56,216.55,216.44,5.40798557]
[1734533449002,66.71,216.8,216.46,18.02745008]
[1734533449303,4.1109,216.7,216.54,18.02745008]
[1734533449497,5.56218249,216.69,216.58,18.02745008]
[1734533449698,7.86998249,216.69,216.62,2.3084]
[1734533449899,10.42998249,216.69,216.62,2.3084]
[1734533450202,7.86998249,216.69,216.62,2.3084]
[1734533450503,10.42998249,216.69,216.62,2.3084]
[1734533450900,10.42998249,216.69,216.63,2.3084]
[1734533451197,5.5203,216.74,216.62,18.02745008]
[1734533451394,2.56,216.74,216.7,2.3076]
[1734533451595,2.3076,216.71,216.62,18.02745008]
[1734533451796,2.3076,216.71,216.6,2.56]
[1734533451997,2.56,216.74,216.65,2.3081]
[1734533452393,2.3075,216.71,216.59,18.02745008]
[1734533452599,2.56,216.74,216.59,18.02745008]
[1734533453000,2.56,216.74,216.59,23.44756698]
[1734533453300,2.56,216.74,216.61,2.3086]
[1734533453599,2.3079,216.68,216.59,18.02745008]
[1734533453800,2.56,216.67,216.59,18.02745008]
[1734533454695,2.56,216.73,216.59,18.02745008]
[1734533456303,2.56,216.73,216.64,2.3082]
[1734533456497,2.56,216.73,216.59,18.02745008]
[1734533456695,5.64900323,216.76,216.59,18.02745008]
[1734533456893,2.56,216.72,216.64,18.02745008]
[1734533457400,2.56,216.72,216.71,2.3075]
[1734533457602,2.56,216.72,216.64,18.02745008]
[1734533458101,2.56,216.72,216.68,2.3078]
[1734533458796,2.56,216.72,216.64,18.02745008]
[1734533459297,2.56,216.72,216.59,18.02745008]
[1734533459696,2.56,216.72,216.63,2.3084]
[1734533459995,2.3078,216.69,216.59,18.02745008]
[1734533460203,2.56,216.72,216.62,2.3085]
[1734533460501,2.56,216.72,216.59,18.02745008]
[1734533460801,2.56,216.72,216.57,5.66230413]
[1734533460802,2.3082,216.66,216.57,5.66230413]
[1734533461001,2.56,216.65,216.57,5.66230413]
[1734533461300,2.56,216.65,216.6,2.3086]
[1734533461500,2.56,216.65,216.57,5.66230413]
[1734533462296,2.56,216.65,216.55,19.56255008]
[1734533462491,2.56,216.65,216.38,4.6219]
[1734533462800,3.0777,216.64,216.48,5.48844274]
[1734533462997,4.6272,216.64,216.46,19.56935008]
[1734533463204,2.3088,216.59,216.47,2.3101]
[1734533463392,2.56,216.58,216.46,18.02745008]
[1734533463600,2.56,216.57,216.46,18.02745008]
[1734533463800,2.56,216.56,216.46,18.02745008]
[1734533464301,2.3093,216.55,216.5,2.3097]
[1734533464496,2.3093,216.55,216.46,18.02745008]
[1734533464497,2.56,216.58,216.46,18.02745008]
[1734533465499,2.3096,216.52,216.46,20.33755008]
[1734533465701,2.56,216.51,216.46,20.33755008]
[1734533465903,2.56,216.57,216.46,18.02745008]
[1734533466104,4.8689,216.58,216.46,18.02745008]
[1734533466299,2.56,216.58,216.5,18.02745008]
[1734533466706,2.56,216.58,216.56,2.3091]
[1734533467001,2.56,216.58,216.5,18.02745008]
[1734533467402,2.56,216.58,216.46,18.02745008]
[1734533468310,20.58745008,216.58,216.4,1.4841]
[1734533468601,20.58745008,216.58,216.4,7.02968476]
[1734533468803,2.3098,216.5,216.45,2.3103]
[1734533469003,2.56,216.49,216.45,2.3103]
[1734533469702,2.56,216.49,216.34,18.02745008]
[1734533470098,20.58745008,216.49,216.35,2.3114]
[1734533471003,2.56,216.49,216.38,18.02745008]
[1734533471499,2.3102,216.46,216.4,2.3108]
[1734533471699,2.56,216.49,216.34,23.5281156]
[1734533472504,2.56,216.49,216.41,2.3106]
[1734533472804,2.56,216.49,216.34,23.5281156]
[1734533473206,2.3103,216.45,216.41,2.3107]
[1734533473601,2.3103,216.45,216.34,23.5281156]
[1734533474204,2.3102,216.46,216.4,2.3107]
[1734533474404,2.56,216.49,216.4,2.3107]
[1734533474605,2.56,216.49,216.34,23.5281156]
[1734533475009,2.3102,216.46,216.38,2.311]
[1734533475202,2.3102,216.46,216.34,23.5281156]
[1734533475203,1.5511,216.5,216.34,23.5281156]
[1734533475405,2.56,216.49,216.34,23.5281156]
[1734533475908,2.56,216.49,216.38,18.02745008]
[1734533476109,2.56,216.49,216.38,20.58745008]
[1734533476609,2.56,216.49,216.34,26.0881156]
[1734533476903,2.56,216.49,216.34,23.5281156]
[1734533477100,1.4995,216.48,216.34,23.5281156]
[1734533477501,2.3102,216.46,216.34,23.5281156]
[1734533477701,23.51345297,216.53,216.34,23.5281156]
[1734533477702,5.48600289,216.53,216.34,23.5281156]
[1734533478007,2.56,216.52,216.41,2.3106]
[1734533478201,2.56,216.52,216.34,23.5281156]
[1734533478811,18.02745008,216.5,216.34,23.5281156]
[1734533479112,18.02745008,216.5,216.33,2.9408]
[1734533479310,3.051,216.49,216.35,2.3114]
[1734533479710,1.4995,216.48,216.35,2.3114]
[1734533479907,2.3109,216.4,216.35,2.3114]
[1734533480211,4.8709,216.4,216.35,2.3114]
[1734533480412,2.3111,216.38,216.34,2.3115]
[1734533480610,2.3111,216.38,216.33,2.9408]
[1734533480803,2.3109,216.39,216.35,2.3114]
[1734533481008,2.56,216.4,216.35,2.3114]
[1734533481406,4.8708,216.4,216.35,2.3114]
[1734533481606,2.56,216.45,216.34,18.02745008]
[1734533482811,2.56,216.45,216.41,2.3107]
[1734533483114,2.56,216.45,216.34,18.02745008]
[1734533483515,4.8704,216.45,216.4,2.3107]
[1734533484016,2.56,216.45,216.33,2.9408]
[1734533484913,2.3109,216.39,216.33,2.9408]
[1734533485115,2.56,216.38,216.26,20.58745008]
[1734533485414,2.56,216.37,216.26,18.02745008]
[1734533485611,4.8713,216.36,216.31,2.3117]
[1734533485824,2.56,216.35,216.31,2.3117]
[1734533486415,2.56,216.35,216.22,22.56535008]
[1734533486615,2.56,216.35,216.22,4.5379]
[1734533486831,22.62445008,216.34,216.16,18.02745008]
[1734533487124,22.62445008,216.34,216.2,5.51984998]
[1734533487322,2.3122,216.28,216.2,5.51984998]
[1734533487516,2.56,216.27,216.2,5.51984998]
[1734533488121,2.56,216.27,216.2,23.54730006]
[1734533488422,2.56,216.3,216.21,1.4858]
[1734533488626,2.56,216.3,216.22,1.584]
[1734533489326,2.56,216.3,216.27,2.3122]
[1734533490023,2.56,216.31,216.22,1.584]
[1734533491223,2.3119,216.3,216.26,2.3123]
[1734533491423,2.56,216.31,216.26,2.3123]
[1734533491826,2.3117,216.33,216.27,2.3121]
[1734533492029,2.56,216.32,216.22,1.584]
[1734533492625,2.56,216.32,216.29,2.3119]
[1734533493425,2.56,216.32,216.22,1.584]
[1734533493829,2.56,216.41,216.34,2.3114]
[1734533494025,2.56,216.41,216.28,20.58745008]
[1734533494221,2.56,216.41,216.29,1.5761]
[1734533494418,2.56,216.41,216.36,2.3112]
[1734533494819,2.3108,216.4,216.36,2.3112]
[1734533495223,2.56,216.41,216.3,1.6052]
[1734533495432,2.3111,216.38,216.3,1.6052]
[1734533495729,18.02745008,216.47,216.3,1.6052]
[1734533495927,2.3113,216.37,216.3,1.6052]
[1734533496426,2.3113,216.37,216.32,2.3116]